bitfinex-derivatives/quotes_SOLF0:USTF0_20241021
["timestamp","ask_amount","ask_price","bid_price","bid_amount"]
[1729521895786,3.033,164.92,164.88,3.0335]
[1729521896387,3.033,164.92,164.84,8.8992]
[1729521896588,2.9780097,164.91,164.89,3.0333]
[1729521898587,2.9780097,164.91,164.84,8.8992]
[1729521898787,6.3,164.95,164.84,8.8992]
[1729521899191,3.0327,164.93,164.89,3.0332]
[1729521899393,3.0327,164.93,164.84,8.8992]
[1729521899788,3.0327,164.93,164.86,3.0338]
[1729521899994,3.0327,164.93,164.84,8.8992]
[1729521900492,6.3,164.95,164.84,8.8992]
[1729521900885,3.0331,164.91,164.84,8.8992]
[1729521901091,4.26458501,165.0,164.84,11.89936797]
[1729521901399,1.3021,165.0,164.84,8.8992]
[1729521901589,1.3021,165.0,164.93,3.0324]
[1729521901783,4.37450997,165.0,164.93,3.0324]
[1729521901987,1.3021,165.0,164.93,3.0324]
[1729521902189,3.032,164.97,164.93,3.0324]
[1729521902989,6.0447946,164.97,164.93,3.0324]
[1729521903189,3.0127946,164.97,164.92,3.0327]
[1729521903392,6.3,164.99,164.84,8.8992]
[1729521903791,9.31582894,164.99,164.84,8.8992]
[1729521904694,3.0319,164.97,164.93,3.0325]
[1729521905088,3.0319,164.97,164.84,8.8992]
[1729521905291,3.0319,164.97,164.94,3.0324]
[1729521905687,3.0317,164.98,164.89,6.3]
[1729521906497,3.0317,164.98,164.94,3.0323]
[1729521906894,3.01582894,164.99,164.89,6.3]
[1729521907099,3.0325,164.94,164.85,6.3]
[1729521907394,7.6021,165.0,164.85,6.3]
[1729521907395,3.00460189,164.99,164.85,6.3]
[1729521907593,3.0327,164.93,164.89,3.0332]
[1729521907797,6.3,164.95,164.84,2.5992]
[1729521907997,1.3194,164.92,164.84,1.3396]
[1729521908197,1.3194,164.92,164.8,6.3]
[1729521908198,3.0331,164.91,164.83,3.0343]
[1729521908395,1.3194,164.92,164.81,1.329]
[1729521909297,1.3194,164.92,164.82,6.3]
[1729521910001,3.0332,164.9,164.82,6.3]
[1729521910501,6.3,164.95,164.82,6.3]
[1729521910797,3.0333,164.9,164.82,6.3]
[1729521911002,6.02035753,164.9,164.82,6.3]
[1729521911400,2.98705753,164.9,164.82,6.3]
[1729521911601,1.3156,164.93,164.82,6.3]
[1729521912600,3.0328,164.92,164.82,6.3]
[1729521913007,3.0328,164.92,164.88,3.0334]
[1729521913209,3.033,164.91,164.88,3.0334]
[1729521913500,3.00217138,164.9,164.87,3.0336]
[1729521913700,3.00217138,164.9,164.82,6.3]
[1729521914002,3.0329,164.92,164.82,6.3]
[1729521914403,3.033,164.91,164.87,3.0336]
[1729521914705,3.05438305,164.9,164.87,3.0336]
[1729521915305,3.05438305,164.9,164.88,3.0335]
[1729521915505,6.3,164.95,164.82,6.3]
[1729521916005,3.0329,164.92,164.88,3.0334]
[1729521916307,6.32,164.94,164.88,3.0334]
[1729521916505,3.0331,164.91,164.87,3.0336]
[1729521916903,6.32,164.94,164.82,6.3]
[1729521917204,3.0332,164.9,164.82,6.3]
[1729521917505,6.32,164.94,164.82,6.3]
[1729521917895,3.0332,164.9,164.85,3.034]
[1729521918098,3.03210435,164.89,164.82,6.3]
[1729521918499,3.08674233,164.89,164.87,3.0336]
[1729521918704,6.32,164.94,164.87,3.0336]
[1729521919402,6.32,164.94,164.81,7.629]
[1729521919595,6.32,164.94,164.81,1.329]
[1729521919797,24.57,164.94,164.77,1.23]
[1729521919998,24.57,164.94,164.78,6.3]
[1729521920201,24.3139,164.97,164.78,6.3]
[1729521920406,6.3,164.93,164.78,6.3]
[1729521920599,3.0332,164.9,164.86,3.0339]
[1729521920799,3.0332,164.9,164.78,12.3704]
[1729521920800,3.09220613,164.9,164.78,12.3704]
[1729521921000,6.3,164.92,164.78,12.3704]
[1729521921208,3.0333,164.9,164.86,3.0338]
[1729521921404,6.07784967,164.9,164.86,3.0338]
[1729521921707,6.07784967,164.9,164.78,12.3704]
[1729521921708,3.04454967,164.9,164.79,6.0703]
[1729521921907,1.282,164.91,164.78,6.3]
[1729521922216,1.282,164.91,164.8,6.07]
[1729521922600,2.96228916,164.9,164.87,3.0336]
[1729521923400,2.96228916,164.9,164.83,3.0344]
[1729521923704,2.96228916,164.9,164.8,6.07]
[1729521923901,1.282,164.91,164.88,3.0335]
[1729521924108,1.282,164.91,164.83,6.3]
[1729521924405,2.99416131,164.9,164.83,6.3]
[1729521924610,2.98535853,164.9,164.83,6.3]
[1729521925003,1.282,164.91,164.85,3.034]
[1729521925203,1.282,164.91,164.78,1.51815991]
[1729521925415,1.282,164.91,164.77,1.23]
[1729521925416,2.687,164.9,164.79,6.3]
[1729521925711,3.0337,164.88,164.79,6.3]
[1729521926107,2.687,164.9,164.84,3.0341]
[1729521926311,3.0334,164.89,164.79,6.3]
[1729521926801,2.687,164.9,164.79,6.3]
[1729521927004,5.75546076,164.9,164.79,6.3]
[1729521927203,2.687,164.9,164.84,3.0341]
[1729521927704,3.0337,164.88,164.84,3.0341]
[1729521927907,5.77002912,164.9,164.78,6.3]
[1729521928400,3.0339,164.86,164.82,3.0345]
[1729521928605,5.77002912,164.9,164.78,6.3]
[1729521929313,3.0338,164.87,164.83,3.0343]
[1729521930008,3.0338,164.87,164.78,6.3]
[1729521930414,3.034,164.86,164.82,3.0345]
[1729521930604,3.034,164.86,164.78,6.3]
[1729521930808,5.77002912,164.9,164.78,6.3]
[1729521931006,3.0337,164.87,164.83,3.0343]
[1729521931211,3.0337,164.87,164.78,6.3]
[1729521931613,6.3,164.88,164.77,1.23]
[1729521932120,3.034,164.86,164.77,1.23]
[1729521932415,6.3,164.88,164.77,1.23]
[1729521932709,3.0338,164.87,164.82,3.0345]
[1729521932909,3.0338,164.87,164.77,1.23]
[1729521933111,6.3,164.88,164.84,3.0342]
[1729521933310,6.3,164.88,164.77,1.23]
[1729521933704,9.3336,164.88,164.83,3.0343]
[1729521934109,6.3,164.88,164.56,8.82026925]
[1729521934309,3.0339,164.86,164.75,6.0718]
[1729521934517,3.0339,164.86,164.76,1.51823911]
[1729521934812,6.3,164.88,164.77,1.51825726]
[1729521935010,6.3,164.88,164.75,6.0718]
[1729521935205,6.3,164.88,164.76,1.51825401]
[1729521935410,6.3,164.88,164.77,1.51825401]
[1729521935611,9.3336,164.88,164.82,3.0345]
[1729521936909,5.77002912,164.9,164.86,3.0338]
[1729521937219,5.77002912,164.9,164.79,1.51815503]
[1729521937518,1.282,164.91,164.8,1.51809456]
[1729521937708,1.282,164.91,164.81,4.12054811]
[1729521937907,1.282,164.91,164.81,2.6025]
[1729521938818,1.282,164.91,164.82,1.51801789]
[1729521939015,1.282,164.91,164.83,6.3]
[1729521939319,1.282,164.91,164.89,3.0332]
[1729521940515,1.282,164.91,164.83,6.3]
[1729521940706,1.282,164.91,164.66,16.66016355]
[1729521940907,2.6527,164.9,164.76,1.342]
[1729521941114,5.69409527,164.9,164.77,3.94720987]
[1729521941311,2.6527,164.9,164.78,10.24720987]
[1729521941507,2.6527,164.9,164.79,1.51815764]
[1729521941712,2.6527,164.9,164.78,6.3]
[1729521941916,5.65523923,164.9,164.79,1.51815381]
[1729521942114,5.65523923,164.9,164.85,3.0339]
[1729521942315,5.65523923,164.9,164.78,6.3]
[1729521942617,5.65523923,164.9,164.79,1.51814648]
[1729521942811,5.65523923,164.9,164.78,6.3]
[1729521943816,5.65523923,164.9,164.79,1.51812365]
[1729521944009,5.65523923,164.9,164.78,6.3]
[1729521944714,8.68843923,164.9,164.85,3.034]
[1729521945216,5.65523923,164.9,164.88,3.0335]
[1729521945415,5.65523923,164.9,164.79,1.51813348]
[1729521945608,5.65523923,164.9,164.78,12.3706]
[1729521945812,5.65523923,164.9,164.87,3.0336]
[1729521946518,5.65523923,164.9,164.85,3.034]
[1729521946721,8.68853923,164.9,164.85,3.034]
[1729521947017,5.65523923,164.9,164.78,12.3706]
[1729521947420,8.68843923,164.9,164.85,3.0339]
[1729521947814,5.65523923,164.9,164.78,12.3706]
[1729521948016,5.65523923,164.9,164.79,1.51813047]
[1729521948217,5.65523923,164.9,164.78,12.3706]
[1729521948521,5.65523923,164.9,164.79,1.51812357]
[1729521948722,5.65523923,164.9,164.87,3.0336]
[1729521950517,3.00253923,164.9,164.87,3.0336]
[1729521950717,10.615,164.91,164.87,3.0336]
[1729521952421,7.582,164.91,164.78,6.3]
[1729521952722,7.582,164.91,164.87,3.0336]
[1729521953522,10.615,164.91,164.87,3.0336]
[1729521953916,10.615,164.91,164.85,3.0339]
[1729521953917,7.582,164.91,164.85,3.0339]
[1729521954120,25.832,164.91,164.76,1.342]
[1729521954322,8.57208043,164.9,164.77,1.5181217]
[1729521954515,11.66508698,164.9,164.78,1.5181217]
[1729521954719,11.66508698,164.9,164.76,7.622]
[1729521954923,11.66508698,164.9,164.77,1.51813445]
[1729521955129,11.66508698,164.9,164.76,7.622]
[1729521955130,3.0338,164.87,164.83,3.0343]
[1729521955822,3.034,164.86,164.82,3.0345]
[1729521956021,11.66508698,164.9,164.82,3.0345]
[1729521956228,11.66508698,164.9,164.76,7.622]
[1729521956428,11.66508698,164.9,164.77,1.51814856]
[1729521956631,11.66508698,164.9,164.78,1.51814856]
[1729521956925,11.66508698,164.9,164.76,7.622]
[1729521957127,11.66508698,164.9,164.77,1.51815485]
[1729521957428,18.25,164.89,164.78,1.51815485]
[1729521957630,18.25,164.89,164.74,13.5836]
[1729521957826,18.25,164.89,164.75,1.51816991]
[1729521958027,18.25,164.89,164.76,1.51816991]
[1729521958232,18.25,164.89,164.77,1.51816991]
[1729521958430,3.0342,164.85,164.81,3.0347]
[1729521958631,3.0342,164.85,164.74,7.3036]
[1729521958632,7.5465,164.84,164.74,6.0719]
[1729521958828,10.0966,164.84,164.8,3.0349]
[1729521959431,10.0966,164.84,164.79,3.0351]
[1729521959631,28.3466,164.84,164.65,6.28]
[1729521959829,28.3466,164.84,164.66,2.80258513]
[1729521960028,18.22,164.83,164.59,4.55467695]
[1729521960231,18.25,164.77,164.5,1.2951]
[1729521960432,18.25,164.75,164.51,1.1161694]
[1729521960731,3.0367,164.71,164.61,3.0384]
[1729521960938,3.0367,164.71,164.5,1.2951]
[1729521960939,18.25,164.69,164.5,1.2951]
[1729521961244,36.47,164.69,164.38,6.28]
[1729521961447,36.47,164.69,164.39,1.2692]
[1729521961739,36.47,164.67,164.39,1.2692]
[1729521961941,3.0389,164.59,164.46,3.0412]
[1729521962232,3.0389,164.59,164.39,1.2692]
[1729521962233,22.3212557,164.58,164.39,1.2692]
[1729521962538,7.52765985,164.43,164.39,1.2692]
[1729521962730,24.76903145,164.57,164.39,1.2692]
[1729521962731,12.04546096,164.56,164.39,1.2692]
[1729521963038,15.37275148,164.55,164.39,1.2692]
[1729521963237,15.37275148,164.54,164.39,1.2692]
[1729521963441,15.37275148,164.53,164.39,1.2692]
[1729521963733,15.37275148,164.52,164.51,3.0403]
[1729521963946,15.37275148,164.52,164.44,6.3]
[1729521964136,15.37275148,164.51,164.44,6.3]
[1729521964443,15.37275148,164.5,164.44,6.3]
[1729521964634,15.37275148,164.49,164.44,6.3]
[1729521964835,6.3,164.57,164.44,6.3]
[1729521965134,13.87878614,164.56,164.44,6.3]
[1729521965334,6.3,164.57,164.44,6.3]
[1729521965539,5.32960021,164.55,164.44,6.3]
[1729521965840,13.85681669,164.54,164.44,6.3]
[1729521966037,13.85681669,164.53,164.44,6.3]
[1729521966345,13.85681669,164.52,164.44,6.3]
[1729521966640,13.85681669,164.51,164.44,6.3]
[1729521966939,13.85681669,164.5,164.44,6.3]
[1729521967136,6.3,164.57,164.44,6.3]
[1729521967441,13.15094493,164.56,164.44,6.3]
[1729521967643,13.15094493,164.55,164.44,6.3]
[1729521967832,13.15094493,164.54,164.44,6.3]
[1729521968040,1.2998,164.58,164.44,6.3]
[1729521968241,6.3,164.59,164.58,3.039]
[1729521968537,1.2558,164.64,164.45,1.2827]
[1729521968538,3.09058009,164.6,164.51,6.3]
[1729521968759,6.3,164.63,164.58,3.0389]
[1729521969043,6.3,164.63,164.51,6.3]
[1729521969542,6.3,164.63,164.54,3.0397]
[1729521969742,6.3,164.63,164.48,6.3]
[1729521970136,3.0383,164.62,164.53,3.0399]
[1729521970833,3.0386,164.61,164.53,3.0399]
[1729521971038,3.0386,164.61,164.29,228.0]
[1729521971039,24.55,164.63,164.29,228.0]
[1729521971243,1.0,164.6,164.37,1.3232]
[1729521971439,18.25,164.59,164.37,1.3232]
[1729521971636,18.25,164.57,164.43,3.0418]
[1729521971835,1.2603,164.56,164.37,1.3232]
[1729521972043,83.93,164.55,164.37,1.3232]
[1729521972245,83.93,164.55,164.34,1.3181]
[1729521972246,85.288,164.55,164.34,1.3181]
[1729521972446,1.2797,164.54,164.34,1.3181]
[1729521972641,7.5797,164.54,164.34,1.3181]
[1729521972840,6.3,164.53,164.35,1.11829081]
[1729521973038,1.2797,164.54,164.36,1.11828072]
[1729521973339,1.2797,164.54,164.52,3.04]
[1729521973540,1.2797,164.54,164.44,6.3]
[1729521973739,6.3,164.62,164.45,8.8331]
[1729521973943,7.5797,164.62,164.45,8.8331]
[1729521974442,7.5797,164.62,164.56,3.0394]
[1729521974838,7.5797,164.62,164.45,8.8331]
[1729521975042,7.5797,164.62,164.55,3.0396]
[1729521975235,7.5797,164.62,164.45,8.8331]
[1729521975645,7.5797,164.62,164.56,3.0394]
[1729521976042,7.5797,164.62,164.45,8.8331]
[1729521976344,7.5797,164.62,164.59,3.0387]
[1729521976934,1.2797,164.62,164.51,6.3]
[1729521977140,4.271,164.66,164.64,3.0378]
[1729521977141,1.2334,164.66,164.64,3.0378]
[1729521977336,1.2334,164.66,164.51,6.3]
[1729521977740,1.2334,164.66,164.55,3.0395]
[1729521977945,1.2334,164.66,164.51,6.3]
[1729521978147,4.2711,164.66,164.51,6.3]
[1729521978345,1.2334,164.66,164.51,6.3]
[1729521978746,3.0378,164.65,164.51,6.3]
[1729521979944,3.0378,164.65,164.58,3.039]
[1729521980149,3.0382,164.63,164.51,6.3]
[1729521980656,6.28,164.64,164.49,6.28]
[1729521981048,24.53,164.64,164.54,3.0396]
[1729521982054,3.0385,164.61,164.49,6.28]
[1729521982555,3.0385,164.61,164.55,3.0396]
[1729521982853,90.21,164.64,164.45,2.5331]
[1729521983149,90.21,164.64,164.37,65.68]
[1729521983150,90.21,164.64,164.4,6.28]
[1729521983354,3.0393,164.57,164.41,1.233]
[1729521983654,8.9052,164.56,164.41,1.233]
[1729521983847,11.9447,164.56,164.41,1.233]
[1729521984158,11.94916825,164.56,164.41,1.233]
[1729521984649,5.66916825,164.56,164.52,3.04]
[1729521984852,6.28,164.55,164.41,1.233]
[1729521985448,6.28,164.55,164.49,3.0405]
[1729521985753,6.28,164.55,164.42,6.28]
[1729521986258,6.28,164.55,164.43,1.3445]
[1729521986559,6.28,164.55,164.53,3.0398]
[1729521987151,6.28,164.55,164.43,1.3445]
[1729521988652,6.28,164.55,164.52,3.04]
[1729521988857,10.67506825,164.56,164.52,3.04]
[1729521989256,10.67506825,164.56,164.43,1.3445]
[1729521991556,10.67506825,164.56,164.51,3.0402]
[1729521992355,10.67506825,164.56,164.52,3.04]
[1729521992954,10.67506825,164.56,164.43,1.3445]
[1729521994063,10.67506825,164.56,164.51,3.0402]
[1729521995156,10.67506825,164.56,164.52,3.0401]
[1729521996054,10.67506825,164.56,164.43,1.3445]
[1729521996558,28.92506825,164.56,164.43,7.6245]
[1729521996759,4.2977,164.55,164.49,3.0405]
[1729521996961,4.2977,164.55,164.43,7.6245]
[1729521997362,4.2977,164.55,164.46,3.0412]
[1729521997565,4.2977,164.55,164.43,7.6245]
[1729521998060,4.2977,164.55,164.5,3.0404]
[1729521998657,1.258,164.55,164.52,3.0401]
[1729521998851,7.538,164.55,164.43,7.6245]
[1729521999256,7.538,164.55,164.51,3.0402]
[1729521999864,7.538,164.55,164.53,3.0398]
[1729522001053,7.538,164.55,164.43,7.6245]
[1729522001258,7.538,164.55,164.52,3.0401]
[1729522001566,7.538,164.55,164.43,7.6245]
[1729522002561,7.538,164.55,164.51,3.0402]
[1729522002767,7.538,164.55,164.43,7.6245]
[1729522003659,7.538,164.55,164.51,3.0402]
[1729522003866,8.8724,164.55,164.51,3.0402]
[1729522004768,8.8724,164.55,164.5,3.0405]
[1729522004769,11.9121,164.55,164.5,3.0405]
[1729522004964,8.8724,164.55,164.43,6.28]
[1729522005163,3.0399,164.54,164.49,3.0406]
[1729522005669,8.8724,164.55,164.49,3.0406]
[1729522005871,3.0398,164.54,164.49,3.0406]
[1729522006058,8.8724,164.55,164.43,6.28]
[1729522006269,7.538,164.55,164.43,6.28]
[1729522006666,7.538,164.55,164.53,3.0399]
[1729522006861,7.538,164.55,164.44,6.0832]
[1729522007266,7.538,164.55,164.51,3.0402]
[1729522007468,7.538,164.55,164.44,6.0832]
[1729522007863,7.538,164.55,164.42,6.28]
[1729522008666,3.0401,164.53,164.42,6.28]
[1729522009263,7.538,164.55,164.42,6.28]
[1729522009574,10.5777,164.55,164.42,6.28]
[1729522009775,7.538,164.55,164.42,6.28]
[1729522010679,1.323,164.54,164.41,1.233]
[1729522010975,1.323,164.54,164.41,7.513]
[1729522011376,3.0401,164.53,164.48,3.0409]
[1729522011968,4.3629,164.54,164.41,7.513]
[1729522012178,4.3629,164.54,164.49,3.0407]
[1729522012972,4.3629,164.54,164.5,3.0404]
[1729522013167,1.323,164.54,164.41,7.513]
[1729522013374,7.603,164.54,164.42,6.0839]
[1729522015775,7.603,164.54,164.41,7.513]
[1729522015975,4.39506825,164.56,164.41,7.513]
[1729522016184,10.67506825,164.56,164.41,7.513]
[1729522016377,10.67506825,164.56,164.53,3.0399]
[1729522016979,10.67506825,164.56,164.44,6.0833]
[1729522017181,10.67506825,164.56,164.41,7.513]
[1729522017381,10.67506825,164.56,164.45,6.0829]
[1729522017691,10.67506825,164.56,164.46,1.2841]
[1729522018180,10.67506825,164.56,164.52,3.04]
[1729522018582,4.39506825,164.56,164.52,3.04]
[1729522018886,10.67506825,164.56,164.52,3.0401]
[1729522019382,10.67506825,164.56,164.46,1.2841]
[1729522019587,10.67506825,164.56,164.53,3.04]
[1729522020386,10.67506825,164.56,164.51,3.0402]
[1729522021295,10.67506825,164.56,164.46,1.2841]
[1729522021886,10.67506825,164.56,164.51,3.0402]
[1729522022086,13.71456825,164.56,164.46,1.2841]
[1729522022490,13.71456825,164.56,164.52,3.04]
[1729522022987,13.71456825,164.56,164.51,3.0402]
[1729522022988,3.0397,164.55,164.51,3.0402]
[1729522023593,3.0397,164.55,164.48,3.0408]
[1729522023791,3.0397,164.55,164.46,1.2841]
[1729522023991,10.67506825,164.56,164.47,6.0821]
[1729522024295,10.67506825,164.56,164.54,3.0397]
[1729522024485,10.67506825,164.56,164.48,1.3034]
[1729522025386,10.67506825,164.56,164.53,3.0398]
[1729522025587,3.04396825,164.56,164.48,1.3034]
[1729522025782,9.3191,164.58,164.48,1.3034]
[1729522026392,12.32358944,164.58,164.48,1.3034]
[1729522026996,12.32358944,164.58,164.54,3.0397]
[1729522027691,9.28448944,164.58,164.55,3.0395]
[1729522027993,7.5874,164.61,164.48,7.5834]
[1729522028399,10.626,164.61,164.56,3.0393]
[1729522029292,20.91949691,164.61,164.56,3.0393]
[1729522029493,10.29349691,164.6,164.48,7.5834]
[1729522029688,13.40460873,164.6,164.48,7.5834]
[1729522030599,13.40460873,164.6,164.55,3.0394]
[1729522030801,13.40460873,164.6,164.48,7.5834]
[1729522031499,3.11111182,164.6,164.48,7.5834]
[1729522031700,10.626,164.61,164.48,7.5834]
[1729522032096,10.626,164.61,164.56,3.0393]
[1729522032296,7.5874,164.61,164.48,7.5834]
[1729522032798,7.5874,164.61,164.57,3.0391]
[1729522033599,7.5874,164.61,164.48,7.5834]
[1729522033811,1.3074,164.61,164.48,7.5834]
[1729522034305,16.57349691,164.63,164.48,7.5834]
[1729522034306,10.29349691,164.63,164.48,7.5834]
[1729522034508,10.29349691,164.64,164.48,7.5834]
[1729522034707,6.28,164.65,164.48,7.5834]
[1729522035004,6.28,164.66,164.48,7.5834]
[1729522035398,6.28,164.66,164.53,6.08]
[1729522035698,6.28,164.66,164.54,7.5847]
[1729522036004,9.3177,164.66,164.61,3.0384]
[1729522036611,19.61119691,164.66,164.61,3.0384]
[1729522036814,10.29349691,164.65,164.61,3.0384]
[1729522037119,9.2977,164.66,164.61,3.0384]
[1729522037319,3.0378,164.65,164.61,3.0385]
[1729522037815,6.26,164.66,164.61,3.0385]
[1729522038216,9.2976,164.66,164.61,3.0385]
[1729522038518,6.26,164.66,164.55,1.2568]
[1729522038710,9.2976,164.66,164.55,1.2568]
[1729522039513,9.2976,164.66,164.61,3.0384]
[1729522039919,9.2976,164.66,164.55,1.2568]
[1729522039920,6.26,164.66,164.55,1.2568]
[1729522040109,3.038,164.64,164.59,3.0388]
[1729522040314,3.038,164.64,164.55,1.2568]
[1729522040822,3.0378,164.65,164.55,1.2568]
[1729522041018,3.0378,164.65,164.6,3.0386]
[1729522041918,6.26,164.66,164.58,3.0389]
[1729522041919,3.0382,164.63,164.58,3.0389]
[1729522042112,24.51,164.66,164.54,1.3047]
[1729522042310,24.51,164.66,164.49,1.3488]
[1729522042311,18.25,164.64,164.49,1.3488]
[1729522042509,3.0388,164.6,164.49,1.3488]
[1729522042714,7.5999,164.59,164.49,1.3488]
[1729522042910,7.5999,164.59,164.52,3.0402]
[1729522042911,10.6388,164.59,164.52,3.0402]
[1729522043120,10.6842242,164.59,164.49,1.3488]
[1729522043511,13.7232242,164.59,164.54,3.0397]
[1729522043910,13.7232242,164.59,164.49,1.3488]
[1729522043911,10.6842242,164.59,164.49,1.3488]
[1729522044117,10.6842242,164.59,164.55,3.0395]
[1729522044416,10.6842242,164.59,164.49,1.3488]
[1729522045818,10.6842242,164.59,164.54,3.0397]
[1729522046025,20.97772111,164.59,164.54,3.0397]
[1729522046222,10.6842242,164.59,164.54,3.0397]
[1729522046617,10.6842242,164.59,164.49,1.3488]
[1729522046618,10.6842242,164.59,164.55,3.0396]
[1729522047719,3.0392,164.57,164.49,1.3488]
[1729522047922,36.47,164.58,164.36,80.63632714]
[1729522048124,36.47,164.58,164.27,6.0894]
[1729522048125,19.5403,164.56,164.31,1.2652]
[1729522048316,18.25,164.54,164.31,1.2652]
[1729522048524,18.25,164.52,164.32,3.0443913]
[1729522048725,1.3182,164.51,164.32,3.0443913]
[1729522048922,65.68,164.55,164.33,6.0873]
[1729522049129,7.5084,164.54,164.34,6.26]
[1729522049331,3.0403,164.52,164.44,3.0415]
[1729522049926,25.7584,164.54,164.34,6.26]
[1729522050125,3.0406,164.5,164.43,3.0417]
[1729522050323,6.085,164.78,164.31,1.2652]
[1729522050324,3.10035214,164.53,164.41,3.04804092]
[1729522050625,6.26,164.55,164.42,10.0444]
[1729522050828,6.26,164.54,164.42,10.0444]
[1729522051326,10.5482,164.54,164.47,3.041]
[1729522051531,13.55268558,164.54,164.47,3.041]
[1729522052224,10.51288558,164.54,164.42,10.0444]
[1729522052831,9.26448558,164.54,164.42,10.0444]
[1729522053328,9.26448558,164.54,164.49,3.0407]
[1729522053526,9.26448558,164.54,164.42,10.0444]
[1729522053926,3.00448558,164.54,164.42,10.0444]
[1729522054122,6.26,164.53,164.42,10.0444]
[1729522054321,2.97759759,164.52,164.42,10.0444]
[1729522055422,2.97759759,164.52,164.5,3.0404]
[1729522055624,2.97759759,164.52,164.42,10.0444]
[1729522056326,6.26,164.53,164.42,3.7844]
[1729522056731,6.26,164.53,164.45,3.0414]
[1729522056928,9.37510005,164.53,164.42,3.7844]
[1729522057325,3.0404,164.51,164.46,3.0413]
[1729522057624,9.37510005,164.53,164.42,2.54]
[1729522057824,9.37510005,164.53,164.33,6.0874]
[1729522057825,3.0407,164.49,164.43,3.0417]
[1729522058025,6.26,164.48,164.43,3.0417]
[1729522058225,7.601,164.48,164.43,3.0417]
[1729522058634,7.601,164.48,164.37,1.302]
[1729522061534,7.601,164.48,164.36,1.322]
[1729522061535,3.0415,164.45,164.39,3.0425]
[1729522062330,25.851,164.48,164.38,3.0427]
[1729522062738,3.0418,164.44,164.38,3.0427]
[1729522062930,6.26,164.43,164.33,1.2687]
[1729522063127,9.3289501,164.43,164.36,3.043]
[1729522063530,3.0421,164.42,164.36,3.043]
[1729522064034,1.2722,164.41,164.37,3.0429]
[1729522064231,1.2722,164.41,164.29,2.6062]
[1729522064535,4.3144,164.41,164.29,2.6062]
[1729522065041,1.2722,164.41,164.36,3.043]
[1729522065433,1.2722,164.41,164.29,2.6062]
[1729522065633,3.0424,164.4,164.32,3.0437]
[1729522065830,3.0424,164.4,164.29,2.6062]
[1729522066031,1.2722,164.41,164.29,2.6062]
[1729522066231,3.0425,164.4,164.34,3.0433]
[1729522067033,1.2722,164.41,164.29,2.6062]
[1729522067340,3.0426,164.39,164.33,3.0436]
[1729522067539,6.26,164.38,164.29,1.3406]
[1729522067737,9.3028,164.38,164.29,3.0443]
[1729522067932,9.3028,164.38,164.26,1.2311]
[1729522068239,6.26,164.38,164.26,1.2311]
[1729522068927,65.74,164.37,164.0,506.0]
[1729522069132,6.26,164.36,164.18,1.2974]
[1729522069334,6.26,164.36,164.19,2.6456]
[1729522069638,65.74,164.37,164.19,2.6456]
[1729522069639,6.26,164.35,164.19,2.6456]
[1729522070036,1.3101,164.34,164.23,3.0454]
[1729522070230,1.3101,164.34,164.19,2.6456]
[1729522070538,3.0445,164.29,164.21,3.0459]
[1729522070739,6.26,164.28,164.21,3.0459]
[1729522071337,6.26,164.28,164.14,6.26]
[1729522071540,3.0449,164.27,164.19,3.0461]